[Event "GEO-ch U20 Boys 2020"]
[Site "Tbilisi"]
[Date "2020.08.10"]
[Round "5.5"]
[White "Gongliashvili, Zurab"]
[Black "Tsomaia, Nikoloz"]
[Result "1/2-1/2"]
[ECO "C50"]
[WhiteElo "1807"]
[BlackElo "2240"]
[Annotator "ChessBase"]
[PlyCount "194"]
[EventDate "2020.08.06"]
[EventType "tourn"]
[EventCountry "GEO"]
[SourceTitle "playchess.com"]
[Source "ChessBase"]
[SourceQuality "1"]
[TimeControl "40/5400+30:1800+30"]

1. e4 {[%emt 0:02:34]} e5 {[%emt 0:00:00]} 2. Nf3 {[%emt 0:00:22]} Nc6 {[%emt 0:00:00]} 3. Bc4 {[%emt 0:00:10]} Bc5 {[%emt 0:00:07]} 4. Nc3 {[%emt 0:01:29]} Nf6 {[%emt 0:00:24]} 5. d3 {[%emt 0:00:12]} h6 {[%emt 0:00:28]} 6. O-O {[%emt 0:00:15]} d6 {[%emt 0:05:18]} 7. h3 {[%emt 0:08:09]} a6 {[%emt 0:00:58]} 8. a4 {[%emt 0:00:17]} Ba7 {[%emt 0:00:13]} 9. Be3 {[%emt 0:01:29]} O-O {[%emt 0:00:08]} 10. Bxa7 {[%emt 0:00:48]} Rxa7 {[%emt 0:00:04]} 11. d4 {[%emt 0:07:03]} Qe7 {[%emt 0:00:23]} 12. Nd5 {[%emt 0:04:19]} Nxd5 {[%emt 0:01:33]} 13. exd5 {[%emt 0:01:10]} Nxd4 {[%emt 0:00:17]} 14. Nxd4 {[%emt 0:00:17]} exd4 {[%emt 0:00:05]} 15. Qxd4 {[%emt 0:00:05]} Ra8 {[%emt 0:00:03]} 16. Rae1 {[%emt 0:01:24]} Qg5 {[%emt 0:00:37]} 17. Kh2 {[%emt 0:02:23]} Bd7 {[%emt 0:00:24]} 18. h4 {[%emt 0:02:15]} Qd8 {[%emt 0:02:42]} 19. Re3 {[%emt 0:04:52]} Bxa4 {[%emt 0:08:44]} 20. Rg3 {[%emt 0:03:13]} f6 {[%emt 0:00:15]} 21. Qf4 {[%emt 0:07:51]} Bxc2 {[%emt 0:14:56]} 22. Qxh6 {[%emt 0:00:10]} Qd7 {[%emt 0:00:52]} 23. Rc1 {[%emt 0:03:08]} Bh7 {[%emt 0:03:49]} 24. h5 {[%emt 0:04:19]} Rae8 {[%emt 0:01:28]} 25. Rcc3 {[%emt 0:05:17]} Re4 {[%emt 0:07:15]} 26. Qd2 {[%emt 0:03:35]} Rh4+ {[%emt 0:07:45]} 27. Rh3 {[%emt 0:00:40]} Qg4 {[%emt 0:00:36]} 28. Be2 {[%emt 0:03:00]} Rxh3+ {[%emt 0:00:40]} 29. gxh3 {[%emt 0:01:14]} Qf5 {[%emt 0:00:08]} 30. Bg4 {[%emt 0:00:32]} Qe5+ {[%emt 0:00:45]} 31. f4 {[%emt 0:00:15]} Qe7 {[%emt 0:01:57]} 32. Re3 {[%emt 0:01:35]} Qd8 {[%emt 0:00:19]} 33. Be6+ {[%emt 0:00:34]} Kh8 {[%emt 0:00:01]} 34. f5 {[%emt 0:01:28]} Qe8 {[%emt 0:00:10]} 35. h6 {[%emt 0:04:40]} gxh6 {[%emt 0:01:13]} 36. Rc3 {[%emt 0:00:37]} Qh5 {[%emt 0:05:05]} 37. Rxc7 {[%emt 0:00:11]} Qg5 {[%emt 0:08:36]} 38. Qxg5 {[%emt 0:01:02]} fxg5 {[%emt 0:00:14]} 39. Rxb7 {[%emt 0:00:28]} Bxf5 {[%emt 0:00:17]} 40. Rb6 {[%emt 0:00:16]} Bxe6 {[%emt 0:28:36]} 41. dxe6 {[%emt 0:30:03]} Kg7 {[%emt 0:31:05]} 42. Rxd6 {[%emt 0:00:08]} a5 {[%emt 0:00:52]} 43. Ra6 {[%emt 0:00:42]} Rf2+ {[%emt 0:01:00]} 44. Kg3 {[%emt 0:00:13]} Rxb2 {[%emt 0:00:09]} 45. Rxa5 {[%emt 0:00:25]} Kf6 {[%emt 0:00:41]} 46. e7 {[%emt 0:02:09]} Rb3+ {[%emt 0:00:39]} 47. Kg4 {[%emt 0:02:03]} Rb4+ {[%emt 0:00:10]} 48. Kg3 {[%emt 0:00:06]} Kxe7 {[%emt 0:00:10]} 49. Ra7+ {[%emt 0:02:10]} Kf6 {[%emt 0:00:07]} 50. Ra6+ {[%emt 0:00:02]} Kg7 {[%emt 0:00:05]} 51. Rc6 {[%emt 0:00:39]} Rf4 {[%emt 0:01:58]} 52. Ra6 {[%emt 0:00:54]} h5 {[%emt 0:00:43]} 53. Ra7+ {[%emt 0:01:32]} Kg6 {[%emt 0:00:07]} 54. Ra6+ {[%emt 0:00:06]} Rf6 {[%emt 0:00:10]} 55. Ra3 {[%emt 0:00:07]} Rb6 {[%emt 0:00:28]} 56. Rc3 {[%emt 0:01:02]} h4+ {[%emt 0:01:19]} 57. Kf3 {[%emt 0:00:08]} Rb2 {[%emt 0:00:15]} 58. Rc6+ {[%emt 0:01:43]} Kh5 {[%emt 0:00:03]} 59. Rc8 {[%emt 0:00:05]} Rh2 {[%emt 0:00:30]} 60. Rh8+ {[%emt 0:00:14]} Kg6 {[%emt 0:00:05]} 61. Rg8+ {[%emt 0:00:34]} Kh6 {[%emt 0:00:08]} 62. Kg4 {[%emt 0:00:48]} Rg2+ {[%emt 0:00:10]} 63. Kf5 {[%emt 0:00:12]} Rf2+ {[%emt 0:00:58]} 64. Ke4 {[%emt 0:01:20]} Rf4+ {[%emt 0:00:25]} 65. Ke3 {[%emt 0:00:19]} Ra4 {[%emt 0:00:33]} 66. Kf3 {[%emt 0:00:17]} Ra3+ {[%emt 0:00:01]} 67. Kg2 {[%emt 0:01:06]} Rg3+ {[%emt 0:00:45]} 68. Kh2 {[%emt 0:00:20]} Kh7 {[%emt 0:00:32]} 69. Rf8 {[%emt 0:00:15]} Rd3 {[%emt 0:01:49]} 70. Rf2 {[%emt 0:00:04]} Kg6 {[%emt 0:00:19]} 71. Ra2 {[%emt 0:00:05]} Kf5 {[%emt 0:00:14]} 72. Rf2+ {[%emt 0:01:14]} Ke4 {[%emt 0:00:10]} 73. Rg2 {[%emt 0:00:17]} Kf4 {[%emt 0:00:14]} 74. Rg4+ {[%emt 0:00:06]} Kf5 {[%emt 0:00:02]} 75. Rg2 {[%emt 0:00:10]} Re3 {[%emt 0:00:04]} 76. Rf2+ {[%emt 0:00:43]} Ke5 {[%emt 0:00:27]} 77. Rg2 {[%emt 0:00:08]} Kf4 {[%emt 0:00:03]} 78. Rg4+ {[%emt 0:00:06]} Kf5 {[%emt 0:00:02]} 79. Rg2 {[%emt 0:00:06]} Re5 {[%emt 0:00:33]} 80. Rf2+ {[%emt 0:02:08]} Ke4 {[%emt 0:00:12]} 81. Kg2 {[%emt 0:01:31]} Kd3 {[%emt 0:01:39]} 82. Rf3+ {[%emt 0:00:53]} Kd4 {[%emt 0:00:26]} 83. Rf2 {[%emt 0:00:34]} Re3 {[%emt 0:00:11]} 84. Rf5 {[%emt 0:00:29]} Rg3+ {[%emt 0:00:16]} 85. Kh2 {[%emt 0:00:23]} Ke4 {[%emt 0:00:06]} 86. Ra5 {[%emt 0:00:09]} Kf4 {[%emt 0:00:16]} 87. Ra4+ {[%emt 0:00:11]} Kf5 {[%emt 0:00:25]} 88. Ra5+ {[%emt 0:00:05]} Kg6 {[%emt 0:00:03]} 89. Ra6+ {[%emt 0:00:05]} Kh5 {[%emt 0:00:01]} 90. Ra2 {[%emt 0:00:15]} Re3 {[%emt 0:00:01]} 91. Rb2 {[%emt 0:00:23]} Kg6 {[%emt 0:00:02]} 92. Rf2 {[%emt 0:00:24]} Re4 {[%emt 0:00:01]} 93. Kg2 {[%emt 0:01:01]} Rf4 {[%emt 0:00:28]} 94. Ra2 {[%emt 0:00:10]} Rf6 {[%emt 0:00:03]} 95. Rb2 {[%emt 0:00:29]} Kf5 {[%emt 0:00:15]} 96. Rb5+ {[%emt 0:00:12]} Kf4 {[%emt 0:00:02]} 97. Rb4+ {[%emt 0:00:15]} Ke5 1/2-1/2

[Event "GEO-ch U20 Boys 2020"]
[Site "Tbilisi"]
[Date "2020.08.10"]
[Round "5.6"]
[White "Qalichava, Akaki"]
[Black "Tsereteli, Tornike"]
[Result "1-0"]
[ECO "C06"]
[WhiteElo "1832"]
[BlackElo "1735"]
[Annotator "NA"]
[PlyCount "118"]
[EventDate "2020.08.06"]
[EventType "tourn"]
[EventCountry "GEO"]
[SourceTitle "playchess.com"]
[Source "ChessBase"]
[SourceQuality "1"]
[TimeControl "40/5400+30:1800+30"]

1. e4 {[%emt 0:00:00]} e6 {[%emt 0:00:00]} 2. d4 {[%emt 0:00:00]} d5 {[%emt 0:00:00]} 3. Nd2 {[%emt 0:00:00]} Nf6 {[%emt 0:00:00]} 4. e5 {[%emt 0:00:00]} Nfd7 {[%emt 0:00:00]} 5. Bd3 {[%emt 0:00:01]} c5 {[%emt 0:00:00]} 6. c3 {[%emt 0:00:05]} Nc6 {[%emt 0:00:00]} 7. Ne2 {[%emt 0:00:06]} cxd4 {[%emt 0:00:00]} 8. cxd4 {[%emt 0:00:05]} f6 {[%emt 0:00:00]} 9. exf6 {[%emt 0:00:03]} Qxf6 {[%emt 0:00:10]} 10. Nf3 {[%emt 0:01:21]} Bb4+ {[%emt 0:00:05]} 11. Bd2 {[%emt 0:00:27]} Bxd2+ {[%emt 0:00:05]} 12. Qxd2 {[%emt 0:00:04]} O-O {[%emt 0:00:07]} 13. O-O {[%emt 0:04:33]} e5 {[%emt 0:00:06]} 14. dxe5 {[%emt 0:01:13]} Ndxe5 {[%emt 0:00:25]} 15. Nxe5 {[%emt 0:01:53]} Nxe5 {[%emt 0:00:01]} 16. Nd4 {[%emt 0:03:35] C06: French Tarrasch: 3...Nf6 4 e5 Nfd7 5 Bd3 main lines.} Kh8 {[%emt 0:03:52] [#]} 17. Be2 $146 {[%emt 0:02:16]} ({Predecessor:} 17. Rad1 Bd7 18. Be2 Rad8 19. b3 a6 20. Qb4 Qg6 21. Rfe1 Bh3 22. Bf1 Nc6 23. Qb6 Rd6 24. Nxc6 bxc6 25. Qxa6 {1-0 (40) Maksimenko,A (2483)-Musialkiewicz,P (2247) Pokrzywna 2018}) 17... Bg4 {[%emt 0:07:09]} 18. Bxg4 {[%emt 0:04:13]} Nxg4 {[%emt 0:00:17]} 19. h3 {[%emt 0:00:04]} Ne5 {[%emt 0:00:58]} 20. b3 {[%emt 0:00:52]} Ng6 {[%emt 0:04:04]} 21. g3 {[%emt 0:09:27]} Ne5 {[%emt 0:03:13]} 22. Rad1 {[%emt 0:02:38]} Nf7 {[%emt 0:07:42]} 23. Kg2 {[%emt 0:06:27]} Ng5 {[%emt 0:04:09]} 24. f3 {[%emt 0:00:12]} Rad8 {[%emt 0:10:29]} 25. Rde1 {[%emt 0:04:23]} Rde8 {[%emt 0:03:28]} 26. Re3 {[%emt 0:00:35]} Ne4 {[%emt 0:05:40]} 27. Qd3 {[%emt 0:00:19]} Nc5 {[%emt 0:06:45]} 28. Qe2 {[%emt 0:03:58]} Qg6 {[%emt 0:07:59]} 29. Rd1 {[%emt 0:11:37]} Rxe3 {[%emt 0:02:59]} 30. Qxe3 {[%emt 0:00:40]} Re8 {[%emt 0:00:16]} 31. Qd2 {[%emt 0:02:25]} Qa6 {[%emt 0:05:13]} 32. Qc2 {[%emt 0:03:57]} Qb6 {[%emt 0:05:04]} 33. Ne2 {[%emt 0:06:10]} Rd8 {[%emt 0:00:45]} 34. Qf5 {[%emt 0:02:31]} Qe6 {[%emt 0:00:55]} 35. Qxe6 {[%emt 0:00:15]} Nxe6 {[%emt 0:00:01]} 36. f4 {[%emt 0:00:15]} g6 {[%emt 0:00:39]} 37. g4 {[%emt 0:00:54]} Kg7 {[%emt 0:00:49]} 38. Kf3 {[%emt 0:00:09]} Kf6 {[%emt 0:00:32]} 39. Nc3 {[%emt 0:01:31]} Nc7 {[%emt 0:00:12]} 40. Rd4 {[%emt 0:05:23]} Rd6 {[%emt 0:01:33]} 41. Ke3 {[%emt 0:31:31]} Ke6 {[%emt 0:30:06]} 42. Rd2 {[%emt 0:00:15]} Rc6 {[%emt 0:00:43]} 43. Kd4 {[%emt 0:01:01]} Kd6 {[%emt 0:01:28]} 44. f5 {[%emt 0:01:05]} gxf5 {[%emt 0:00:00]} 45. gxf5 {[%emt 0:00:01]} b5 {[%emt 0:00:30] [#]} (45... Rb6 $11) 46. Re2 $1 {[%emt 0:03:16]} b4 {[%emt 0:01:44]} 47. Nxd5 {[%emt 0:00:18]} Nb5+ {[%emt 0:04:33]} 48. Ke4 {[%emt 0:00:05]} Rc1 {[%emt 0:04:20]} 49. Rd2 {[%emt 0:02:22]} Re1+ {[%emt 0:00:13]} 50. Kf4 {[%emt 0:00:32]} Rf1+ $18 {[%emt 0:00:16]} 51. Kg5 {[%emt 0:00:40]} Ke5 {[%emt 0:03:23]} 52. Ne3 {[%emt 0:00:14]} Rg1+ {[%emt 0:00:07]} 53. Ng4+ {[%emt 0:00:07]} Ke4 {[%emt 0:00:08]} 54. f6 {[%emt 0:00:38]} Nd4 {[%emt 0:00:25]} 55. Rxd4+ {[%emt 0:00:04]} Kxd4 {[%emt 0:00:09]} 56. f7 {[%emt 0:00:11]} Rf1 {[%emt 0:01:06]} 57. Nf6 {[%emt 0:00:06]} Ke5 {[%emt 0:00:02]} 58. f8=Q {[%emt 0:00:11]} Rf5+ {[%emt 0:00:06]} 59. Kg4 {[%emt 0:00:13]} Rxf6 {[%emt 0:00:14]} 1-0

[Event "GEO-ch U20 Boys 2020"]
[Site "Tbilisi"]
[Date "2020.08.11"]
[Round "6.1"]
[White "Akhvlediani, Irakli"]
[Black "Kacharava, Nikolozi"]
[Result "0-1"]
[ECO "D34"]
[WhiteElo "2358"]
[BlackElo "2437"]
[Annotator "ChessBase"]
[PlyCount "74"]
[EventDate "2020.08.06"]
[EventType "tourn"]
[EventCountry "GEO"]
[SourceTitle "playchess.com"]
[Source "ChessBase"]
[SourceQuality "1"]
[TimeControl "40/5400+30:1800+30"]

1. d4 {[%emt 0:04:27]} d5 {[%emt 0:00:00]} 2. c4 {[%emt 0:00:36]} e6 {[%emt 0:00:35]} 3. Nf3 {[%emt 0:01:13]} c5 {[%emt 0:00:43]} 4. cxd5 {[%emt 0:00:06]} exd5 {[%emt 0:00:19]} 5. Nc3 {[%emt 0:00:03]} Nc6 {[%emt 0:00:51]} 6. g3 {[%emt 0:00:17]} Nf6 {[%emt 0:00:44]} 7. Bg2 {[%emt 0:00:04]} Be7 {[%emt 0:00:37]} 8. O-O {[%emt 0:00:07]} O-O {[%emt 0:00:32]} 9. dxc5 {[%emt 0:02:45]} Bxc5 {[%emt 0:00:26]} 10. a3 {[%emt 0:16:00]} Ne4 {[%emt 0:02:35]} 11. Nxd5 {[%emt 0:08:14]} Be6 {[%emt 0:00:57]} 12. Ne3 {[%emt 0:07:44]} f5 {[%emt 0:02:01]} 13. Qxd8 {[%emt 0:14:32]} Raxd8 {[%emt 0:02:24]} 14. b4 {[%emt 0:04:00]} Bb6 {[%emt 0:07:44]} 15. Nc2 {[%emt 0:24:31]} Bb3 {[%emt 0:12:34]} 16. b5 {[%emt 0:00:11]} Na5 {[%emt 0:06:35]} 17. Nb4 {[%emt 0:06:19]} Bc4 {[%emt 0:04:50]} 18. Be3 {[%emt 0:00:02]} Bxe3 {[%emt 0:03:49]} 19. fxe3 {[%emt 0:00:01]} Nb3 {[%emt 0:08:30]} 20. Rad1 {[%emt 0:01:09]} Bxe2 {[%emt 0:00:53]} 21. Rxd8 {[%emt 0:00:02]} Rxd8 {[%emt 0:00:06]} 22. Re1 {[%emt 0:00:07]} Bxb5 {[%emt 0:00:59]} 23. Nh4 {[%emt 0:03:07]} a5 {[%emt 0:06:59]} 24. Nxf5 {[%emt 0:05:43]} axb4 {[%emt 0:01:27]} 25. Bxe4 {[%emt 0:00:02]} Nd2 {[%emt 0:07:19]} 26. Bxb7 {[%emt 0:00:50]} b3 {[%emt 0:01:03]} 27. Nd4 {[%emt 0:00:03]} Bc4 {[%emt 0:01:55]} 28. a4 {[%emt 0:01:13]} Rb8 {[%emt 0:02:32]} 29. Nxb3 {[%emt 0:00:20]} Bxb3 {[%emt 0:02:45]} 30. Bc6 {[%emt 0:00:03]} Bxa4 {[%emt 0:05:24]} 31. Bd5+ {[%emt 0:00:46]} Kf8 {[%emt 0:00:47]} 32. Ra1 {[%emt 0:00:05]} Rb4 {[%emt 0:00:37]} 33. Rc1 {[%emt 0:00:09]} Ke7 {[%emt 0:01:18]} 34. Bg8 {[%emt 0:00:13]} Rb2 {[%emt 0:01:12]} 35. Bd5 {[%emt 0:00:45]} Bc2 {[%emt 0:01:08]} 36. Ra1 {[%emt 0:00:14]} Be4 {[%emt 0:01:24]} 37. Ra7+ {[%emt 0:00:05]} Kf6 {[%emt 0:00:40]} 0-1

[Event "GEO-ch U20 Boys 2020"]
[Site "Tbilisi"]
[Date "2020.08.11"]
[Round "6.2"]
[White "Khodashneli, Shota"]
[Black "Kilasonia, Lado"]
[Result "1/2-1/2"]
[ECO "B51"]
[WhiteElo "1940"]
[BlackElo "1390"]
[Annotator "ChessBase"]
[PlyCount "117"]
[EventDate "2020.08.06"]
[EventType "tourn"]
[EventCountry "GEO"]
[SourceTitle "playchess.com"]
[Source "ChessBase"]
[SourceQuality "1"]
[TimeControl "40/5400+30:1800+30"]

1. e4 {[%emt 0:00:00]} c5 {[%emt 0:00:00]} 2. Nf3 {[%emt 0:00:00]} d6 {[%emt 0:00:00]} 3. Bb5+ {[%emt 0:00:08]} Nd7 {[%emt 0:00:00]} 4. O-O {[%emt 0:04:22]} a6 {[%emt 0:00:00]} 5. Bxd7+ {[%emt 0:09:08]} Bxd7 {[%emt 0:00:00]} 6. d4 {[%emt 0:00:14]} cxd4 {[%emt 0:00:00]} 7. Qxd4 {[%emt 0:00:13]} e5 {[%emt 0:00:17]} 8. Qd3 {[%emt 0:00:45]} h6 {[%emt 0:00:42]} 9. c4 {[%emt 0:01:20]} Nf6 {[%emt 0:00:13]} 10. Nc3 {[%emt 0:00:17]} Be7 {[%emt 0:00:10]} 11. b3 {[%emt 0:00:42]} O-O {[%emt 0:00:34]} 12. a4 {[%emt 0:09:02]} Be6 {[%emt 0:01:44]} 13. Ba3 {[%emt 0:04:50]} Qc7 {[%emt 0:01:02]} 14. Rfd1 {[%emt 0:02:38]} Rad8 {[%emt 0:02:27]} 15. Rac1 {[%emt 0:01:23]} Nh5 {[%emt 0:02:04]} 16. Qe3 {[%emt 0:10:51]} f5 {[%emt 0:03:32]} 17. exf5 {[%emt 0:01:41]} Rxf5 {[%emt 0:00:06]} 18. Ne4 {[%emt 0:14:01]} Nf6 {[%emt 0:01:43]} 19. Nxf6+ {[%emt 0:04:35]} Rxf6 {[%emt 0:00:04]} 20. c5 {[%emt 0:06:18]} dxc5 {[%emt 0:02:47]} 21. Rxd8+ {[%emt 0:01:08]} Qxd8 {[%emt 0:01:59]} 22. Nxe5 {[%emt 0:00:52]} Qd5 {[%emt 0:08:20]} 23. Bxc5 {[%emt 0:04:52]} Bxc5 {[%emt 0:00:17]} 24. Qxc5 {[%emt 0:00:01]} Qxc5 {[%emt 0:05:10]} 25. Rxc5 {[%emt 0:00:02]} Bxb3 {[%emt 0:00:27]} 26. a5 {[%emt 0:01:02]} Rd6 {[%emt 0:00:56]} 27. f4 {[%emt 0:02:00]} Rd5 {[%emt 0:02:05]} 28. Rxd5 {[%emt 0:02:52]} Bxd5 {[%emt 0:00:01]} 29. Kf2 {[%emt 0:00:10]} Kf8 {[%emt 0:00:23]} 30. g4 {[%emt 0:00:12]} Ke7 {[%emt 0:01:43]} 31. Ke3 {[%emt 0:00:08]} Kd6 {[%emt 0:13:52]} 32. Kd4 {[%emt 0:00:06]} Ba2 {[%emt 0:01:26]} 33. h4 {[%emt 0:00:33]} h5 {[%emt 0:02:51]} 34. gxh5 {[%emt 0:03:49]} Ke6 {[%emt 0:00:54]} 35. Ng4 {[%emt 0:09:06]} Kf5 {[%emt 0:03:41]} 36. h6 {[%emt 0:00:49]} gxh6 {[%emt 0:00:10]} 37. Nxh6+ {[%emt 0:00:01]} Kxf4 {[%emt 0:00:35]} 38. Kc5 {[%emt 0:00:11]} Be6 {[%emt 0:02:25]} 39. Kd6 {[%emt 0:00:31]} Bc4 {[%emt 0:02:16]} 40. Ke7 {[%emt 0:01:58]} Ke5 {[%emt 0:00:33]} 41. Ng4+ {[%emt 0:30:06]} Kf4 {[%emt 0:31:00]} 42. Nf6 {[%emt 0:00:15]} Kf5 {[%emt 0:02:24]} 43. Nd7 {[%emt 0:01:32]} Be2 {[%emt 0:03:29]} 44. Kd6 {[%emt 0:03:47]} Kg4 {[%emt 0:00:51]} 45. Kc7 {[%emt 0:00:37]} Kxh4 {[%emt 0:00:56]} 46. Kxb7 {[%emt 0:00:07]} Kg5 {[%emt 0:00:14]} 47. Nc5 {[%emt 0:00:13]} Kf6 {[%emt 0:01:09]} 48. Nxa6 {[%emt 0:00:03]} Ke7 {[%emt 0:00:23]} 49. Nc7 {[%emt 0:01:09]} Kd7 {[%emt 0:00:17]} 50. Kb6 {[%emt 0:00:04]} Kc8 {[%emt 0:00:15]} 51. Nd5 {[%emt 0:00:01]} Kb8 {[%emt 0:00:31]} 52. Nf4 {[%emt 0:00:16]} Bf1 {[%emt 0:00:10]} 53. Ng6 {[%emt 0:00:07]} Ka8 {[%emt 0:00:27]} 54. Ne7 {[%emt 0:00:36]} Kb8 {[%emt 0:00:13]} 55. Nc6+ {[%emt 0:00:07]} Ka8 {[%emt 0:00:12]} 56. Kc7 {[%emt 0:00:25]} Bg2 {[%emt 0:00:31]} 57. Nd4 {[%emt 0:00:07]} Ka7 {[%emt 0:00:11]} 58. a6 {[%emt 0:00:05]} Kxa6 {[%emt 0:00:07]} 59. Nb3 {[%emt 0:00:04]} 1/2-1/2

[Event "GEO-ch U20 Boys 2020"]
[Site "Tbilisi"]
[Date "2020.08.11"]
[Round "6.3"]
[White "Tsomaia, Nikoloz"]
[Black "Petriashvili, Nikoloz"]
[Result "0-1"]
[ECO "B24"]
[WhiteElo "2240"]
[BlackElo "2423"]
[Annotator "ChessBase"]
[PlyCount "72"]
[EventDate "2020.08.06"]
[EventType "tourn"]
[EventCountry "GEO"]
[SourceTitle "playchess.com"]
[Source "ChessBase"]
[SourceQuality "1"]
[TimeControl "40/5400+30:1800+30"]

1. e4 {[%emt 0:00:00]} c5 {[%emt 0:00:00]} 2. Nc3 {[%emt 0:00:25]} Nc6 {[%emt 0:00:08]} 3. Bb5 {[%emt 0:00:12]} Nd4 {[%emt 0:01:00]} 4. Nf3 {[%emt 0:00:06]} g6 {[%emt 0:05:09]} 5. Nxd4 {[%emt 0:02:31]} cxd4 {[%emt 0:00:06]} 6. Ne2 {[%emt 0:00:06]} Bg7 {[%emt 0:00:03]} 7. O-O {[%emt 0:00:24]} e6 {[%emt 0:00:23]} 8. c3 {[%emt 0:06:53]} a6 {[%emt 0:00:35]} 9. Bd3 {[%emt 0:00:34]} dxc3 {[%emt 0:02:07]} 10. bxc3 {[%emt 0:03:55]} d5 {[%emt 0:05:30]} 11. Ba3 {[%emt 0:01:22]} b5 {[%emt 0:01:07]} 12. exd5 {[%emt 0:03:18]} Bb7 {[%emt 0:04:33]} 13. Nf4 {[%emt 0:04:47]} Be5 {[%emt 0:03:08]} 14. dxe6 {[%emt 0:33:27]} Bxf4 {[%emt 0:00:17]} 15. Qg4 {[%emt 0:01:48]} Bc7 {[%emt 0:16:22]} 16. Be4 {[%emt 0:02:31]} Bd5 {[%emt 0:15:27]} 17. Qf3 {[%emt 0:24:56]} fxe6 {[%emt 0:00:08]} 18. Qf8+ {[%emt 0:00:41]} Kd7 {[%emt 0:00:04]} 19. Qg7+ {[%emt 0:00:14]} Ne7 {[%emt 0:16:47]} 20. Bxd5 {[%emt 0:00:08]} exd5 {[%emt 0:00:10]} 21. Rae1 {[%emt 0:00:11]} Re8 {[%emt 0:00:27]} 22. Qf7 {[%emt 0:11:51]} Bd6 {[%emt 0:00:20]} 23. Bxd6 {[%emt 0:00:29]} Kxd6 {[%emt 0:00:01]} 24. Re6+ {[%emt 0:00:19]} Kd7 {[%emt 0:00:10]} 25. Rfe1 {[%emt 0:00:41]} Ra7 {[%emt 0:00:09]} 26. Qxh7 {[%emt 0:00:25]} Kc8 {[%emt 0:03:06]} 27. h4 {[%emt 0:00:43]} d4 {[%emt 0:07:19]} 28. g3 {[%emt 0:00:10]} dxc3 {[%emt 0:02:23]} 29. dxc3 {[%emt 0:00:01]} Rc7 {[%emt 0:00:04]} 30. Qf7 {[%emt 0:01:10]} Rf8 {[%emt 0:00:49]} 31. Qg7 {[%emt 0:00:31]} Nf5 {[%emt 0:00:09]} 32. Qxg6 {[%emt 0:00:21]} Nxh4 {[%emt 0:00:26]} 33. Qe4 {[%emt 0:00:39]} Nf3+ {[%emt 0:00:09]} 34. Kh1 {[%emt 0:00:40]} Rh8+ {[%emt 0:00:06]} 35. Kg2 {[%emt 0:00:09]} Nxe1+ {[%emt 0:00:23]} 36. Kg1 {[%emt 0:00:10]} Qd1 {[%emt 0:03:16]} 0-1

[Event "GEO-ch U20 Boys 2020"]
[Site "Tbilisi"]
[Date "2020.08.11"]
[Round "6.5"]
[White "Loladze, Andria"]
[Black "Qalichava, Akaki"]
[Result "1-0"]
[ECO "B40"]
[WhiteElo "1794"]
[BlackElo "1832"]
[Annotator "NA"]
[PlyCount "103"]
[EventDate "2020.08.06"]
[EventType "tourn"]
[EventCountry "GEO"]
[SourceTitle "playchess.com"]
[Source "ChessBase"]
[SourceQuality "1"]
[TimeControl "40/5400+30:1800+30"]

{[%evp 8,80,12,12,12,13,3,0,7,15,16,32767,32767,0,18,0,0,0,8,-27,-22,-40,0,0,0,0,29,36,48,-3,0,0,0,-39,-20,-23,-15,-33,0,-31,11,0,0,0,0,-34,0,-23,34,0,0,-46,23,32767,32767,32767,32767,32767,32767,32767,32767,32767,32767,32767,0,-58,-24,-134,-87,-429,-482,-727,-785,-714,-788]} 1. e4 {[%emt 0:00:00]} c5 {[%emt 0:00:00]} 2. Nf3 {[%emt 0:00:00]} e6 {[%emt 0:00:00]} 3. c3 {[%emt 0:00:00]} Nf6 {[%emt 0:00:00]} 4. e5 {[%emt 0:01:17]} Nd5 {[%emt 0:00:00]} 5. d4 {[%emt 0:00:09]} cxd4 {[%emt 0:00:00]} 6. cxd4 {[%emt 0:00:33]} d6 {[%emt 0:00:25]} 7. Bd3 {[%emt 0:06:35]} Nb4 {[%emt 0:01:59]} 8. O-O {[%emt 0:16:10] B22: Sicilian: 2 c3.} Nxd3 {[%emt 0:00:56]} 9. Qxd3 {[%emt 0:00:06] [#]} d5 $146 {[%emt 0:03:21]} ({Predecessor:} 9... dxe5 10. Nxe5 Be7 11. Nc3 O-O 12. Bf4 Na6 13. a3 Nc7 14. Rac1 Nd5 15. Bg3 h5 {1-0 (49) Van der Lende,I (2353)-Brink,B (2360) Wijk aan Zee 2016}) 10. Bg5 {[%emt 0:14:53]} Qb6 {[%emt 0:10:56]} 11. Nc3 {[%emt 0:06:12]} Bd7 {[%emt 0:00:55]} 12. a3 {[%emt 0:21:15]} h6 {[%emt 0:01:16]} 13. Bh4 {[%emt 0:00:59]} Nc6 {[%emt 0:00:32]} 14. Rfd1 {[%emt 0:01:55]} Na5 {[%emt 0:02:32]} 15. Nd2 {[%emt 0:10:19]} Rc8 {[%emt 0:07:25]} (15... g5 $5 16. Bg3 $8 Rc8 $11) 16. Rab1 {[%emt 0:04:09]} Be7 {[%emt 0:09:11]} 17. Bxe7 {[%emt 0:01:59]} Kxe7 {[%emt 0:01:56]} 18. f4 {[%emt 0:01:49]} g6 {[%emt 0:01:05]} 19. Nf3 {[%emt 0:04:47]} Kf8 {[%emt 0:04:33]} 20. g4 {[%emt 0:04:10]} Qd8 {[%emt 0:05:18]} 21. Kf2 {[%emt 0:01:52]} Nc4 {[%emt 0:01:07]} 22. Rg1 {[%emt 0:00:58]} Rc6 {[%emt 0:01:17]} 23. h4 {[%emt 0:00:34]} h5 {[%emt 0:01:03]} 24. gxh5 {[%emt 0:00:41]} Rxh5 {[%emt 0:00:06]} 25. Rg5 {[%emt 0:00:19]} Rxg5 {[%emt 0:00:53]} 26. hxg5 {[%emt 0:00:01]} Qc7 {[%emt 0:00:26]} 27. Ne2 {[%emt 0:01:02]} a6 {[%emt 0:00:44]} (27... Rb6 $15 28. Qc3 Qc6) 28. Nh4 {[%emt 0:00:37]} Be8 {[%emt 0:00:17]} 29. f5 {[%emt 0:00:34]} exf5 {[%emt 0:00:30]} 30. Nf4 {[%emt 0:00:14]} Qd8 {[%emt 0:01:12]} 31. Nf3 {[%emt 0:00:49]} Nb6 {[%emt 0:02:16]} 32. Qf1 {[%emt 0:00:29]} Rc2+ {[%emt 0:00:22]} 33. Kg3 {[%emt 0:00:17]} Ke7 {[%emt 0:02:11]} 34. Qh3 {[%emt 0:00:42]} Kd7 {[%emt 0:00:14]} 35. Re1 {[%emt 0:00:29]} Kc8 {[%emt 0:01:33]} 36. Qh7 {[%emt 0:00:26]} (36. Qh8 $11) 36... Nc4 {[%emt 0:01:03]} 37. e6 {[%emt 0:00:32] [#]} (37. Qg8 $11 {remains equal.}) 37... Nd6 $1 {[%emt 0:00:32]} 38. e7 $19 {[%emt 0:00:28]} (38. exf7 $17 {was the crucial defense.} Bxf7 39. Re2 Ne4+ 40. Rxe4 dxe4 41. Qxf7 exf3 42. Qxg6) 38... Qd7 {[%emt 0:00:19]} 39. Ne5 {[%emt 0:00:37]} (39. Re2 $142 Rxe2 40. Nxe2) 39... Qxe7 {[%emt 0:01:01]} 40. Qh4 {[%emt 0:00:29]} Ne4+ {[%emt 0:00:14] Double Attack} 41. Kf3 {[%emt 0:30:32]} Nxg5+ {[%emt 0:30:07]} 42. Ke3 {[%emt 0:00:17]} f6 {[%emt 0:01:12]} 43. Nxd5 {[%emt 0:00:29]} Qe6 {[%emt 0:00:54]} 44. Kd3 {[%emt 0:00:19]} fxe5 {[%emt 0:01:54]} 45. Rxe5 {[%emt 0:00:51]} Bb5+ {[%emt 0:01:35]} 46. Kxc2 {[%emt 0:00:23]} Qc6+ {[%emt 0:00:06]} 47. Nc3 {[%emt 0:00:37]} Nf7 {[%emt 0:03:01]} 48. Rc5 {[%emt 0:00:14]} Qxc5 {[%emt 0:00:49]} 49. dxc5 {[%emt 0:00:13]} Bc6 {[%emt 0:00:17]} 50. Qf6 {[%emt 0:00:15]} Nd8 {[%emt 0:00:04]} 51. Qxg6 {[%emt 0:00:12]} f4 {[%emt 0:00:03]} 52. Qf5+ {[%emt 0:00:09]} 1-0